fUSD/lending_fUSD_20241227
["ID","MTS","AMOUNT","RATE_DAILY","PERIOD"]
[346804317,1735299051493,-500.0,0.00010889,2]
[346804318,1735299051502,-500.0,0.00010889,2]
[346804319,1735299051512,-3379.1,0.00010889,2]
[346804320,1735299051521,-500.0,0.00010889,2]
[346804321,1735299051531,-500.0,0.00010889,2]
[346804322,1735299051540,-500.0,0.00010889,2]
[346804323,1735299051550,-500.0,0.00010889,2]
[346804324,1735299051559,-592.73,0.00010889,2]
[346804325,1735299051571,-1271.31,0.00010889,2]
[346804326,1735299051582,-996.63,0.00010889,2]
[346804327,1735299051593,-5194.96,0.00010889,2]
[346804328,1735299051602,-500.0,0.00010889,2]
[346804329,1735299051611,-1389.91,0.00010889,2]
[346804330,1735299051621,-500.0,0.00010889,2]
[346804331,1735299051631,-966.22,0.00010889,2]
[346804332,1735299051641,-500.0,0.00010889,2]
[346804333,1735299051650,-938.95,0.00010889,2]
[346804334,1735299051659,-500.0,0.00010889,2]
[346804335,1735299051670,-500.0,0.00010889,2]
[346804336,1735299051679,-9629.48,0.00010889,2]
[346804337,1735299051688,-500.0,0.00010889,2]
[346804338,1735299051697,-575.08,0.0001089,2]
[346804339,1735299051707,-500.0,0.0001089,2]
[346804340,1735299051718,-500.0,0.0001089,2]
[346804341,1735299051727,-500.0,0.0001089,2]
[346804342,1735299051736,-150.0,0.0001089,2]
[346804343,1735299051746,-3012.3,0.0001089,2]
[346804344,1735299051755,-1185.23,0.0001089,2]
[346804345,1735299051764,-4962.55,0.0001089,2]
[346804346,1735299051774,-33271.82,0.0001089,2]
[346804347,1735299051783,-1216.51,0.0001089,2]
[346804348,1735299051792,-3607.91,0.0001089,2]
[346804349,1735299051802,-675.7,0.0001089,2]
[346804350,1735299051813,-3065.94,0.0001089,2]
[346804351,1735299051822,-2421.09,0.0001089,2]
[346804352,1735299051831,-590.6,0.0001089,2]
[346804353,1735299051840,-7852.57,0.0001089,2]
[346804354,1735299051849,-3000.0,0.0001089,2]
[346804355,1735299051858,-1741.59,0.00010891,2]
[346804356,1735299051867,-1224.31,0.00010891,2]
[346804357,1735299051876,-150.0,0.00010891,2]
[346804358,1735299051885,-5907.29,0.00010891,2]
[346804359,1735299051895,-5231.5,0.00010891,2]
[346804360,1735299051904,-150.0,0.00010892,2]
[346804361,1735299051924,-150.0,0.00010895,2]
[346804362,1735299051945,-6453.78831495,0.00010898,2]
[346804363,1735299051966,-1452.96434514,0.000109,2]
[346804364,1735299051987,-164.34168626,0.000109,2]
[346804365,1735299052007,-164.34168626,0.000109,2]
[346804366,1735299052028,-150.0,0.00010902,2]
[346804367,1735299052050,-150.0,0.00010904,2]
[346804368,1735299052075,-150.0,0.00010906,2]
[346804369,1735299052109,-150.0,0.00010907,2]
[346804370,1735299052141,-150.0,0.00010913,2]
[346804371,1735299052168,-150.0,0.00010913,2]
[346804372,1735299052179,-1500.0,0.00010913,2]
[346804373,1735299052189,-150.0,0.00010913,2]
[346804374,1735299052199,-150.0,0.00010916,2]
[346804375,1735299052210,-150.0,0.00010918,2]
[346804376,1735299052219,-150.0,0.00010918,2]
[346804377,1735299052228,-150.0,0.00010918,2]
[346804378,1735299052238,-150.0,0.00010918,2]
[346804379,1735299052248,-200.0,0.00010918,2]
[346804380,1735299052258,-150.0,0.00010919,2]
[346804381,1735299052268,-1500.0,0.00010921,2]
[346804382,1735299052277,-150.0,0.00010921,2]
[346804383,1735299052288,-150.0,0.00010921,2]
[346804384,1735299052297,-150.0,0.00010928,2]
[346804385,1735299052306,-150.0,0.0001093,2]
[346804386,1735299052317,-150.0,0.00010931,2]
[346804387,1735299052326,-150.0,0.00010932,2]
[346804388,1735299052336,-150.0,0.00010933,2]
[346804389,1735299052345,-150.0,0.00010937,2]
[346804390,1735299052355,-150.0,0.00010938,2]
[346804391,1735299052364,-150.0,0.00010942,2]
[346804392,1735299052373,-150.0,0.00010943,2]
[346804393,1735299052383,-150.0,0.0001095,2]
[346804394,1735299052392,-598.79559338,0.00010951,2]
[346804395,1735299052401,-150.0,0.00010952,2]
[346804396,1735299052411,-1500.0,0.00010952,2]
[346804397,1735299052420,-150.0,0.00010954,2]
[346804398,1735299052429,-150.0,0.00010958,2]
[346804399,1735299052439,-150.0,0.0001096,2]
[346804400,1735299052449,-605.0,0.00010962,2]
[346804401,1735299052458,-150.0,0.00010966,2]
[346804402,1735299052468,-150.0,0.00010966,2]
[346804403,1735299052477,-154.83024305,0.0001097,2]
[346804404,1735299052486,-150.0,0.0001097,2]
[346804405,1735299052495,-150.0,0.00010971,2]
[346804406,1735299052504,-150.0,0.00010972,2]
[346804407,1735299052514,-500.0,0.00010973,2]
[346804408,1735299052523,-500.0,0.00010973,2]
[346804409,1735299052534,-150.0,0.00010974,2]
[346804410,1735299052544,-150.0,0.00010977,2]
[346804411,1735299052553,-150.0,0.0001098,2]
[346804412,1735299052563,-150.0,0.0001098,2]
[346804413,1735299052572,-150.0,0.0001098,2]
[346804414,1735299052582,-1500.0,0.00010981,2]
[346804415,1735299052592,-150.0,0.00010981,2]
[346804416,1735299052601,-150.0,0.00010984,2]
[346804417,1735299052610,-150.0,0.00010984,2]
[346804418,1735299052620,-150.0,0.00010985,2]
[346804419,1735299052629,-150.0,0.00010986,2]
[346804420,1735299052639,-150.0,0.00010986,2]
[346804421,1735299052648,-150.0,0.00010986,2]
[346804422,1735299052657,-150.0,0.00010986,2]
[346804423,1735299052666,-150.0,0.00010988,2]
[346804424,1735299052675,-150.0,0.0001099,2]
[346804425,1735299052684,-675.7,0.0001099,2]
[346804426,1735299052694,-150.0,0.00010993,2]
[346804427,1735299052703,-150.0,0.00010994,2]
[346804428,1735299052712,-150.0,0.00010995,2]
[346804429,1735299052721,-1452.96434513,0.00010996,2]
[346804430,1735299052731,-150.0,0.00010997,2]
[346804431,1735299052742,-1957.67,0.00010998,2]
[346804432,1735299052751,-157.377,0.00010998,2]
[346804433,1735299052761,-150.0,0.00010998,2]
[346804434,1735299052770,-1500.0,0.00010998,2]
[346804435,1735299052779,-150.0,0.00010999,2]
[346804436,1735299052788,-150.0,0.00010999,2]
[346804437,1735299052797,-150.0,0.00010999,2]
[346804438,1735299052807,-675.7,0.00010999,2]
[346804439,1735299052816,-675.7,0.00010999,2]
[346804440,1735299052826,-675.7,0.00010999,2]
[346804441,1735299052835,-366957.18319335,0.00011,2]
[346804442,1735299052845,-250871.64824004,0.00011,2]
[346804443,1735299052854,-150.65,0.00011,2]
[346804444,1735299052863,-2000.0,0.00011,2]
[346804445,1735299052872,-200.0,0.00011,2]
[346804446,1735299052881,-872.61,0.00011,2]
[346804447,1735299052891,-4652855.39261045,0.00011,2]
[346804448,1735299053479,-2200.45424,0.00011,2]
[346804449,1735299053490,-3757.89943146,0.00011,2]
[346804450,1735299053502,-289.27534047,0.00011,2]
[346804451,1735299054251,-369.12270208,0.00010886,2]
[346804452,1735299054657,-130.87729792,0.00010886,2]
[346804453,1735299054667,-377.56329508,0.00010887,2]
[346804454,1735299054678,-856.57670492,0.00010887,2]
[346804455,1735299054687,-309.96472822,0.00010889,2]
[346804456,1735299054711,-675.57527178,0.00010889,2]
[346804457,1735299054721,-1435.53,0.0001089,2]
[346804458,1735299054730,-257144.98024272,0.00011,2]
[346804459,1735299054741,-893705.29088927,0.00011,2]
[346804460,1735299054812,-2105.78243248,0.00011,2]
[346804461,1735299054843,-283.821,0.00011,2]
[346804462,1735299054854,-422.30216206,0.00011,2]
[346804463,1735299054866,-1509.09021663,0.00011,2]
[346804464,1735299055727,-500.0,0.00010886,2]
[346804465,1735299055737,-204.15414417,0.00010886,2]
[346804466,1735299055749,-790.58585583,0.00010886,2]
[346804467,1735299055759,-500.0,0.00010886,2]
[346804468,1735299055768,-1343.32,0.00010886,2]
[346804469,1735299055777,-500.0,0.00010886,2]
[346804470,1735299055787,-500.0,0.00010886,2]
[346804471,1735299055796,-500.0,0.00010889,2]
[346804472,1735299055805,-1108.19014442,0.00011,2]
[346804473,1735299055845,-4478.17606152,0.00011,2]
[346804474,1735299055889,-2757.92484696,0.00011,2]
[346804476,1735299129062,5571.59536621,0.0002,120]
[346804477,1735299156087,1000.0,0.0002,120]
[346804478,1735299234857,183.76,7.954e-05,2]
[346804479,1735299352671,462.89197107,0.0002,120]
[346804481,1735299512192,-280000.0,0.00011192,4]
[346804529,1735299708805,635.93,8.219e-05,2]
[346804613,1735300232337,-1000.0,9.916e-05,2]
[346804614,1735300232347,-184.36,9.922e-05,2]
[346804615,1735300232357,-502.04404121,9.922e-05,2]
[346804616,1735300232366,-250.0,9.922e-05,2]
[346804617,1735300232375,-155.09,0.00010137,2]
[346804618,1735300232384,-635.93,0.00010474,2]
[346804619,1735300232393,-465.908,0.0001063,2]
[346804620,1735300232402,-500.0,0.0001063,2]
[346804621,1735300232411,-5000.0,0.00010785,2]
[346804622,1735300232420,-263.08,0.000108,2]
[346804623,1735300232430,-150.0,0.00010849,2]
[346804624,1735300232439,-300.0,0.00010883,2]
[346804625,1735300232448,-20281.91571241,0.00010884,2]
[346804626,1735300232458,-500.0,0.00010884,2]
[346804627,1735300232467,-500.0,0.00010884,2]
[346804628,1735300232476,-500.0,0.00010884,2]
[346804629,1735300232486,-500.0,0.00010884,2]
[346804630,1735300232495,-500.0,0.00010884,2]
[346804631,1735300232504,-559.63,0.00010884,2]
[346804632,1735300232515,-504.13063808,0.00010884,2]
[346804633,1735300232525,-500.0,0.00010884,2]
[346804634,1735300232534,-504.11037466,0.00010884,2]
[346804635,1735300232544,-91.61123364,0.00010884,2]
[346804636,1735300232572,-689.44876636,0.00010884,2]
[346804637,1735300232582,-500.0,0.00010884,2]
[346804638,1735300232591,-648.42,0.00010884,2]
[346804639,1735300232601,-500.0,0.00010884,2]
[346804640,1735300232611,-500.0,0.00010884,2]
[346804641,1735300232621,-620.00613639,0.00010884,2]
[346804642,1735300232631,-1088.75,0.00010884,2]
[346804643,1735300232641,-500.0,0.00010884,2]
[346804644,1735300232651,-500.0,0.00010884,2]
[346804645,1735300232662,-1128.66,0.00010884,2]
[346804646,1735300232671,-500.0,0.00010884,2]
[346804647,1735300232681,-568.95700423,0.00010884,2]
[346804648,1735300232690,-500.0,0.00010884,2]
[346804649,1735300232700,-500.0,0.00010884,2]
[346804650,1735300232710,-500.0,0.00010884,2]
[346804651,1735300232723,-217.87190703,0.00010884,2]
[346804653,1735300238524,-282.12809297,0.00010884,2]
[346804655,1735300238533,-500.0,0.00010884,2]
[346804657,1735300238543,-500.0,0.00010884,2]
[346804659,1735300238556,-1.32689163,0.00010884,2]
[346804755,1735300240548,-498.67310837,0.00010884,2]
[346804756,1735300240559,-500.0,0.00010884,2]
[346804757,1735300240568,-166.68009678,0.00010884,2]
[346804758,1735300240630,-333.31990322,0.00010884,2]
[346804759,1735300240639,-397.991252,0.00010884,2]
[346804760,1735300240651,-193.588748,0.00010884,2]
[346804761,1735300240660,-500.0,0.00010884,2]
[346804762,1735300240669,-603.35,0.00010884,2]
[346804763,1735300240680,-878.96,0.00010884,2]
[346804764,1735300240690,-500.0,0.00010884,2]
[346804765,1735300240699,-576.63880511,0.00010884,2]
[346804766,1735300240725,-320.52119489,0.00010884,2]
[346804767,1735300240735,-1548.65880511,0.00010884,2]
[346804768,1735300240746,-656.14,0.00010884,2]
[346804769,1735300240757,-367.08119489,0.00010884,2]
[346804770,1735300240767,-500.0,0.00010884,2]
[346804771,1735300240779,-132.91880511,0.00010884,2]
[346804772,1735300243345,-793.50119489,0.00010884,2]
[346804773,1735300243355,-500.0,0.00010884,2]
[346804774,1735300243364,-429.5973539,0.00010884,2]
[346804775,1735300243376,-70.4026461,0.00010884,2]
[346804776,1735300243385,-785.66,0.00010884,2]
[346804777,1735300243394,-500.0,0.00010884,2]
[346804778,1735300243404,-500.0,0.00010884,2]
[346804779,1735300243414,-105.2967609,0.00010884,2]
[346804780,1735300243425,-394.7032391,0.00010884,2]
[346804781,1735300243435,-500.0,0.00010884,2]
[346804782,1735300243444,-500.0,0.00010884,2]
[346804783,1735300243453,-576.38,0.00010884,2]
[346804784,1735300243463,-858.10237255,0.00010884,2]
[346804785,1735300243474,-450.47762745,0.00010884,2]
[346804786,1735300243484,-500.0,0.00010884,2]
[346804787,1735300243494,-500.0,0.00010884,2]
[346804788,1735300243503,-527.74,0.00010884,2]
[346804789,1735300243513,-500.0,0.00010884,2]
[346804790,1735300243523,-423.98218355,0.00010884,2]
[346804791,1735300243561,-975.06641355,0.00010884,2]
[346804792,1735300243572,-4085.0514029,0.00010884,2]
[346804793,1735300243582,-500.0,0.00010884,2]
[346804794,1735300243592,-206.12689868,0.00010884,2]
[346804795,1735300243603,-293.87310132,0.00010884,2]
[346804796,1735300243613,-500.0,0.00010884,2]
[346804797,1735300243622,-500.0,0.00010884,2]
[346804798,1735300243634,-500.0,0.00010884,2]
[346804799,1735300243644,-500.0,0.00010884,2]
[346804800,1735300243654,-500.0,0.00010884,2]
[346804801,1735300243665,-500.0,0.00010884,2]
[346804802,1735300243674,-1016.82,0.00010884,2]
[346804803,1735300243683,-500.0,0.00010884,2]
[346804804,1735300243692,-940.24,0.00010884,2]
[346804805,1735300243701,-2403.89,0.00010884,2]
[346804806,1735300243711,-500.0,0.00010884,2]
[346804807,1735300243720,-249.69572018,0.00010884,2]
[346804808,1735300243746,-250.30427982,0.00010884,2]
[346804809,1735300243755,-33.99572018,0.00010884,2]
[346804810,1735300243766,-466.00427982,0.00010884,2]
[346804811,1735300243776,-500.0,0.00010884,2]
[346804812,1735300243785,-500.0,0.00010884,2]
[346804813,1735300243795,-1724.99572018,0.00010884,2]
[346804814,1735300243806,-452.9,0.00010884,2]
[346804815,1735300243818,-428.9,0.00010884,2]
[346804816,1735300243828,-345.10120056,0.00010884,2]
[346804817,1735300243839,-4479.20749108,0.00010884,2]
[346804818,1735300243850,-458.00134583,0.00010884,2]
[346804819,1735300243862,-384.43424235,0.00010884,2]
[346804820,1735300243872,-500.0,0.00010884,2]
[346804821,1735300243881,-500.0,0.00010884,2]
[346804822,1735300243890,-173.89522658,0.00010884,2]
[346804823,1735300243902,-273.88727203,0.00010884,2]
[346804824,1735300246919,-52.21750139,0.00010884,2]
[346804825,1735300246928,-1133.03,0.00010884,2]
[346804826,1735300246937,-500.0,0.00010884,2]
[346804827,1735300246947,-500.0,0.00010884,2]
[346804828,1735300246956,-246.50771204,0.00010884,2]
[346804829,1735300246965,-500.0,0.00010884,2]
[346804830,1735300246975,-3972.43,0.00010884,2]
[346804831,1735300246984,-649.62,0.00010884,2]
[346804832,1735300246994,-500.0,0.00010884,2]
[346804833,1735300247003,-500.0,0.00010884,2]
[346804834,1735300247013,-500.0,0.00010884,2]
[346804835,1735300247023,-7111.02,0.00010884,2]
[346804836,1735300247035,-500.0,0.00010884,2]
[346804837,1735300247047,-500.0,0.00010884,2]
[346804838,1735300247056,-500.0,0.00010884,2]
[346804839,1735300247065,-500.0,0.00010884,2]
[346804840,1735300247075,-500.0,0.00010884,2]
[346804841,1735300247084,-500.0,0.00010884,2]
[346804842,1735300247093,-801.68,0.00010884,2]
[346804843,1735300247103,-692.64,0.00010884,2]
[346804844,1735300247113,-500.0,0.00010884,2]
[346804845,1735300247123,-500.0,0.00010884,2]
[346804846,1735300247134,-500.0,0.00010884,2]
[346804847,1735300247143,-500.0,0.00010884,2]
[346804848,1735300247153,-500.0,0.00010884,2]
[346804849,1735300247163,-500.0,0.00010884,2]
[346804850,1735300247173,-2524.02,0.00010884,2]
[346804851,1735300247183,-500.0,0.00010884,2]
[346804852,1735300247192,-500.0,0.00010884,2]
[346804853,1735300247201,-500.0,0.00010884,2]
[346804854,1735300247211,-500.0,0.00010884,2]
[346804855,1735300247220,-1371.72,0.00010884,2]
[346804856,1735300247230,-500.0,0.00010884,2]
[346804857,1735300247239,-770.58,0.00010884,2]
[346804858,1735300247249,-500.0,0.00010884,2]
[346804859,1735300247258,-793.42,0.00010884,2]
[346804860,1735300247267,-3764.3,0.00010884,2]
[346804861,1735300247280,-501.89789687,0.00010884,2]
[346804862,1735300247289,-539.01955426,0.00010884,2]
[346804863,1735300247298,-670.01,0.00010884,2]
[346804864,1735300247308,-500.0,0.00010884,2]
[346804865,1735300247317,-500.0,0.00010884,2]
[346804866,1735300247327,-500.0,0.00010884,2]
[346804867,1735300247336,-500.0,0.00010884,2]
[346804868,1735300247346,-500.0,0.00010884,2]
[346804869,1735300247356,-1468.14,0.00010884,2]
[346804870,1735300247366,-500.0,0.00010884,2]
[346804871,1735300247375,-500.0,0.00010884,2]
[346804872,1735300247385,-500.0,0.00010884,2]
[346804873,1735300247394,-500.0,0.00010884,2]
[346804874,1735300247403,-500.0,0.00010884,2]
[346804875,1735300247412,-500.0,0.00010884,2]
[346804876,1735300247422,-1111.94,0.00010884,2]
[346804877,1735300247431,-7307.65,0.00010884,2]
[346804878,1735300247441,-500.0,0.00010884,2]
[346804879,1735300247451,-500.0,0.00010884,2]
[346804880,1735300247460,-500.0,0.00010884,2]
[346804881,1735300247470,-500.0,0.00010884,2]
[346804882,1735300247480,-1146.39,0.00010884,2]
[346804883,1735300247490,-500.0,0.00010884,2]
[346804884,1735300247499,-500.0,0.00010884,2]
[346804885,1735300247509,-500.0,0.00010884,2]
[346804886,1735300247519,-500.0,0.00010884,2]
[346804887,1735300247531,-500.0,0.00010884,2]
[346804888,1735300247541,-501.73675163,0.00010884,2]
[346804889,1735300247556,-500.0,0.00010884,2]
[346804890,1735300247566,-500.0,0.00010884,2]
[346804891,1735300247575,-500.0,0.00010884,2]
[346804892,1735300247585,-500.0,0.00010884,2]
[346804893,1735300247595,-7060.03,0.00010884,2]
[346804894,1735300247604,-634.38827146,0.00010884,2]
[346804895,1735300247614,-500.0,0.00010884,2]
[346804896,1735300247625,-665.59,0.00010884,2]
[346804897,1735300247635,-500.0,0.00010884,2]
[346804898,1735300247644,-500.0,0.00010884,2]
[346804899,1735300247653,-11233.08,0.00010884,2]
[346804900,1735300247663,-500.0,0.00010884,2]
[346804901,1735300247672,-537.14,0.00010884,2]
[346804902,1735300247682,-500.0,0.00010884,2]
[346804903,1735300247691,-500.0,0.00010884,2]
[346804904,1735300247700,-402.60742594,0.00010884,2]
[346804905,1735300247710,-1495.8,0.00010884,2]
[346804906,1735300247719,-501.05272677,0.00010884,2]
[346804907,1735300247728,-500.0,0.00010884,2]
[346804908,1735300247738,-500.0,0.00010884,2]
[346804909,1735300247747,-500.0,0.00010884,2]
[346804910,1735300247756,-967.57,0.00010884,2]
[346804911,1735300247765,-500.0,0.00010884,2]
[346804912,1735300247776,-20941.98,0.00010884,2]
[346804913,1735300247785,-3918.99,0.00010884,2]
[346804914,1735300247795,-500.0,0.00010884,2]
[346804915,1735300247804,-506.24223026,0.00010884,2]
[346804916,1735300247814,-686.3,0.00010884,2]
[346804917,1735300247823,-621.71,0.00010884,2]
[346804918,1735300247832,-4922.33,0.00010884,2]
[346804919,1735300247842,-1194.24,0.00010884,2]
[346804920,1735300247851,-500.0,0.00010884,2]
[346804921,1735300247860,-500.0,0.00010884,2]
[346804922,1735300247870,-516.17,0.00010884,2]
[346804923,1735300247879,-1966.57,0.00010884,2]
[346804924,1735300247888,-11414.75,0.00010884,2]
[346804925,1735300247898,-509.32107927,0.00010884,2]
[346804926,1735300247909,-500.0,0.00010884,2]
[346804927,1735300247918,-591.35,0.00010884,2]
[346804928,1735300247928,-500.0,0.00010884,2]
[346804929,1735300247937,-500.0,0.00010884,2]
[346804930,1735300247947,-500.0,0.00010884,2]
[346804931,1735300247956,-500.0,0.00010884,2]
[346804932,1735300247966,-3253.3,0.00010884,2]
[346804933,1735300247975,-500.0,0.00010884,2]
[346804934,1735300247987,-1252.47,0.00010884,2]
[346804935,1735300247996,-500.0,0.00010884,2]
[346804936,1735300248005,-3834.24,0.00010884,2]
[346804937,1735300248015,-500.0,0.00010884,2]
[346804938,1735300248025,-9265.54,0.00010884,2]
[346804939,1735300248035,-500.0,0.00010884,2]
[346804940,1735300248046,-500.0,0.00010884,2]
[346804941,1735300248056,-500.0,0.00010884,2]
[346804942,1735300248066,-500.0,0.00010884,2]
[346804943,1735300248076,-500.0,0.00010884,2]
[346804944,1735300248085,-500.0,0.00010884,2]
[346804945,1735300248095,-2906.05,0.00010884,2]
[346804946,1735300248104,-626.44,0.00010884,2]
[346804947,1735300248114,-1086.17,0.00010884,2]
[346804948,1735300248124,-500.0,0.00010884,2]
[346804949,1735300248133,-1286.88,0.00010884,2]
[346804950,1735300248144,-500.0,0.00010884,2]
[346804951,1735300248153,-500.0,0.00010884,2]
[346804952,1735300248163,-500.0,0.00010884,2]
[346804953,1735300248172,-500.0,0.00010884,2]
[346804954,1735300248182,-500.0,0.00010884,2]
[346804955,1735300248192,-1147.86,0.00010884,2]
[346804956,1735300248201,-2532.37,0.00010884,2]
[346804957,1735300248211,-1077.8,0.00010884,2]
[346804958,1735300248220,-825.43,0.00010884,2]
[346804959,1735300248230,-500.0,0.00010884,2]
[346804960,1735300248240,-4695.97,0.00010884,2]
[346804961,1735300248250,-2071.84,0.00010884,2]
[346804962,1735300248260,-3449.6,0.00010884,2]
[346804963,1735300248270,-1290.38,0.00010884,2]
[346804964,1735300248282,-500.0,0.00010884,2]
[346804965,1735300248291,-500.0,0.00010884,2]
[346804966,1735300248301,-504.10167117,0.00010884,2]
[346804967,1735300248311,-2464.72,0.00010884,2]
[346804968,1735300248321,-502.32742752,0.00010884,2]
[346804969,1735300248331,-500.0,0.00010884,2]
[346804970,1735300248341,-500.0,0.00010885,2]
[346804971,1735300248350,-500.0,0.00010885,2]
[346804972,1735300248360,-500.0,0.00010885,2]
[346804973,1735300248369,-500.0,0.00010885,2]
[346804974,1735300248379,-500.68609038,0.00010885,2]
[346804975,1735300248389,-500.0,0.00010885,2]
[346804976,1735300248399,-500.0,0.00010885,2]
[346804977,1735300248408,-500.0,0.00010885,2]
[346804978,1735300248418,-558.54379777,0.00010885,2]
[346804979,1735300248427,-500.0,0.00010885,2]
[346804980,1735300248436,-500.0,0.00010885,2]
[346804981,1735300248446,-600.97,0.00010885,2]
[346804982,1735300248460,-500.0,0.00010885,2]
[346804983,1735300248472,-500.0,0.00010885,2]
[346804984,1735300248482,-822.16,0.00010885,2]
[346804985,1735300248491,-502.63399982,0.00010885,2]
[346804986,1735300248501,-500.0,0.00010885,2]
[346804987,1735300248511,-1057.64,0.00010885,2]
[346804988,1735300248521,-500.0,0.00010885,2]
[346804989,1735300248532,-500.0,0.00010885,2]
[346804990,1735300248542,-500.0,0.00010885,2]
[346804991,1735300248554,-1660.6,0.00010885,2]
[346804992,1735300248564,-500.0,0.00010885,2]
[346804993,1735300248574,-500.0,0.00010885,2]
[346804994,1735300248584,-500.0,0.00010885,2]
[346804995,1735300248594,-500.0,0.00010885,2]
[346804996,1735300248604,-705.8,0.00010885,2]
[346804997,1735300248614,-500.0,0.00010885,2]
[346804998,1735300248625,-500.0,0.00010885,2]
[346804999,1735300248637,-500.0,0.00010885,2]
[346805000,1735300248648,-500.0,0.00010885,2]
[346805001,1735300248657,-500.0,0.00010885,2]
[346805002,1735300248667,-1223.07,0.00010885,2]
[346805003,1735300248677,-500.0,0.00010885,2]
[346805004,1735300248687,-500.0,0.00010885,2]
[346805005,1735300248696,-500.20912304,0.00010885,2]
[346805006,1735300248706,-500.0,0.00010885,2]
[346805007,1735300248715,-2976.92,0.00010885,2]
[346805008,1735300248724,-500.0,0.00010885,2]
[346805009,1735300248734,-154.785008,0.00010885,2]
[346805010,1735300248743,-158.124365,0.00010885,2]
[346805011,1735300248752,-3348.604171,0.00010885,2]
[346805012,1735300248762,-500.0,0.00010885,2]
[346805013,1735300248771,-500.0,0.00010885,2]
[346805014,1735300248782,-3292.786804,0.00010885,2]
[346805015,1735300248791,-1776.48,0.00010885,2]
[346805016,1735300248801,-500.0,0.00010885,2]
[346805017,1735300248810,-1919.6,0.00010885,2]
[346805018,1735300248819,-500.0,0.00010885,2]
[346805019,1735300248829,-500.0,0.00010885,2]
[346805020,1735300248839,-500.0,0.00010885,2]
[346805021,1735300248849,-1919.0,0.00010885,2]
[346805022,1735300248858,-204.13269294,0.00010885,2]
[346805023,1735300248868,-500.0,0.00010885,2]
[346805024,1735300248877,-500.0,0.00010885,2]
[346805025,1735300248887,-500.0,0.00010885,2]
[346805026,1735300248896,-500.0,0.00010885,2]
[346805027,1735300248905,-1279.79,0.00010885,2]
[346805028,1735300248915,-500.0,0.00010885,2]
[346805029,1735300248924,-500.0,0.00010885,2]
[346805030,1735300248934,-752.39,0.00010885,2]
[346805031,1735300248943,-500.0,0.00010885,2]
[346805032,1735300248953,-500.0,0.00010885,2]
[346805033,1735300248962,-500.0,0.00010885,2]
[346805034,1735300248972,-500.0,0.00010885,2]
[346805035,1735300248981,-500.0,0.00010885,2]
[346805036,1735300248991,-500.0,0.00010885,2]
[346805037,1735300249001,-500.0,0.00010885,2]
[346805038,1735300249010,-1120.04,0.00010885,2]
[346805039,1735300249019,-504.55226422,0.00010885,2]
[346805040,1735300249030,-500.0,0.00010885,2]
[346805041,1735300249039,-500.0,0.00010885,2]
[346805042,1735300249049,-1008.96,0.00010885,2]
[346805043,1735300249059,-500.0,0.00010885,2]
[346805044,1735300249068,-500.0,0.00010885,2]
[346805045,1735300249078,-500.0,0.00010885,2]
[346805046,1735300249087,-500.0,0.00010885,2]
[346805047,1735300249097,-1003.06,0.00010885,2]